Cogmind - Beta 9.6 @@@ ROGUE MODE // 2020.06.03 @ 20:51:15 Player: Teratos Result: Destroyed by G-34 Mercenary with Small Laser Performance ------------- Evolutions (1) 500 Regions Visited (2) 400 Robots Destroyed (81) 405 Value Destroyed (1985) 1985 Prototype IDs (3) 60 Alien Tech Used (0) 0 Bonus (368) 368 TOTAL SCORE: 3718 Bonus ------- High Alert Combat Kills 368 Cogmind --------- Core Integrity 0/400 Matter 297/300 Energy 400/400 System Corruption 0% Temperature Cool (15) Movement Treading (190) Ox1 Location -9/Materials Parts ------- > --- POWER (2) -------- Ion Engine Ion Engine > --- PROPULSION (2) --- Armored Treads > --- UTILITY (3) ------ Medium Storage Unit Advanced Visual Processing Unit Improved Signal Interpreter > --- WEAPON (2) ------- Small Laser Heavy Assault Rifle > --- INVENTORY (8) ---- Armored Treads Armored Treads Improved Flight Unit Improved Flight Unit Improved Heat Sink Cooling System Advanced Visual Processing Unit Improved Signal Interpreter Peak State ------------ > --- POWER ------------ Heavy Ion Engine Light Nuclear Core > --- PROPULSION ------- Armored Treads Armored Treads > --- UTILITY ---------- Medium Storage Unit Advanced Visual Processing Unit Improved Signal Interpreter > --- WEAPON ----------- Advanced Beam Cannon Heavy Assault Rifle > --- INVENTORY -------- Armored Treads Armored Treads Improved Flight Unit Improved Flight Unit Cooling System Advanced Visual Processing Unit Improved Signal Interpreter Heavy EM Pulse Gun [Rating: 25] Favorites ----------- Power Ion Engine Engine Ion Engine Power Core Light Nuclear Core Propulsion Armored Treads Treads Armored Treads Flight Unit Improved Flight Unit Utility Advanced Visual Processing Unit Device Tractor Beam Storage Medium Storage Unit Processor Advanced Visual Processing Unit Weapon Heavy EM Pulse Gun Energy Gun Heavy EM Pulse Gun Energy Cannon Particle Cannon Ballistic Gun Heavy Assault Rifle Ballistic Cannon Improved Light Cannon Build | -11 -10 -9 ------- Run | Scr Mat Mat Slots Evolved 2 | . . 2 Power 1 | . . 1 Propulsion . | . . . Utility 1 | . . 1 Weapon . | . . . Parts Attached 51 | 5 7 39 Power 13 | 1 3 9 Engine 12 | 1 3 8 Core 1 | . . 1 Reactor . | . . . Propulsion 13 | 2 . 11 Treads 10 | 2 . 8 Leg . | . . . Wheel . | . . . Hover . | . . . Flight 3 | . . 3 Utility 6 | . 3 3 Device 2 | . 2 . Storage 2 | . 1 1 Processor 2 | . . 2 Hackware . | . . . Protection . | . . . Artifact . | . . . Weapon 19 | 2 1 16 Energy Gun 10 | . . 10 Energy Cannon 3 | . . 3 Ballistic Gun 5 | 2 1 2 Ballistic Cannon 1 | . . 1 Launcher . | . . . Special Weapon . | . . . Impact Weapon . | . . . Slashing Weapon . | . . . Piercing Weapon . | . . . Special Melee Weapon . | . . . Unidentified Prototypes 3 | . . 3 Parts Lost 12 | . . 12 Power 4 | . . 4 Propulsion 1 | . . 1 Utility 1 | . . 1 Weapon 6 | . . 6 Highest Loss Streak 4 | . . 4 Average Slot Usage (%) 95 | . 98 94 Engine 14 | . 14 14 Core 3 | . . 4 Treads 22 | . 28 21 Device 3 | . 13 1 Storage 11 | . 13 11 Processor 15 | . . 18 Energy Gun 7 | . . 9 Energy Cannon 2 | . . 2 Ballistic Gun 10 | . 27 7 Ballistic Cannon 1 | . . 2 Naked Turns . | . . . Heaviest Build 29 | 8 13 29 Greatest Support 40 | 40 40 40 Greatest Overweight (x) 7 | . . 7 Average Overweight (x) . | . . . Largest Inventory Capacity 8 | 4 4 8 Average Capacity 6 | 4 4 6 Most Carried 8 | . 3 8 Average Carried 4 | . . 6 Final Capacity 8 | 4 4 8 Final Carried 8 | . 1 8 Class Distribution -------------------- 72% | Mutant 27% | Scavenger-Mutant Dominant Class ---------------- Mutant | -10/Materials Mutant | -9/Materials Resources | -11 -10 -9 ----------- Run | Scr Mat Mat Matter Collected 1359 | 250 418 691 Remotely 456 | . 418 38 Salvage Created 2981 | . 422 2559 Parts 194 | . 26 168 Haulers Intercepted 4 | . . 4 Recyclers Shooed 2 | . 1 1 Parts Field Recycled . | . . . Retrieved Matter . | . . . Parts Self-Destructed . | . . . Prevented . | . . . Kills | -11 -10 -9 ------- Run | Scr Mat Mat Combat Hostiles Destroyed 56 | . 10 46 Guns 44 | . 10 34 Cannons 7 | . . 7 AOE 5 | . . 5 Classes Destroyed 9 | . 4 5 Worker 6 | . . 6 Builder 7 | . . 7 Hauler 4 | . . 4 Recycler 3 | . 1 2 Watcher 5 | . 1 4 Swarmer 11 | . 4 7 Grunt 36 | . 6 30 Brawler 1 | . . 1 Sentry 8 | . . 8 Best Kill Streak 8 | . 3 8 Combat Bots Only 7 | . 3 7 Max Kills in Single Turn 4 | . 1 4 Gunslinging . | . . . Exploded 3 | . . 3 Melee . | . . . Uniques/NPCs Destroyed . | . . . Combat | -11 -10 -9 -------- Run | Scr Mat Mat Damage Taken 2544 | . 327 2217 Core 442 | . 35 407 Absorbed by Shields . | . . . Core Remaining (%) 93 | 100 86 . Volleys Fired 204 | . 38 166 Largest 2 | . 2 2 Hottest 113 | . 40 113 Shots Fired 389 | . 76 313 Gun 334 | . 76 258 Cannon 55 | . . 55 Launcher . | . . . Special . | . . . Kinetic 186 | . 76 110 Thermal 73 | . . 73 Explosive . | . . . Electromagnetic 130 | . . 130 Robot Hit Streak 13 | . 8 13 Robot Miss Streak 8 | . 8 6 Penetration Max . | . . . Secondary Targets 8 | . 4 4 Max Gunslinging Chain 1 | . 1 1 Shots Hit Robots 250 | . 43 207 Core Hits 123 | . 23 100 Critical Hits 1 | . . 1 Critical Kills 1 | . . 1 Critical Parts Destroyed . | . . . Melee Attacks . | . . . Impact . | . . . Slashing . | . . . Piercing . | . . . Sneak Attacks . | . . . Combat Hostiles . | . . . Follow-up Attacks . | . . . Damage Inflicted 4461 | . 471 3990 Guns 3184 | . 471 2713 Cannons 751 | . . 751 Explosions 523 | . . 523 Melee . | . . . Ramming 3 | . . 3 Kinetic 1670 | . 471 1199 Thermal 1304 | . . 1304 Explosive . | . . . Electromagnetic 1484 | . . 1484 Impact . | . . . Slashing . | . . . Piercing . | . . . Highest Corruption . | . . . Average Corruption . | . . . Corruption Purged . | . . . Overload Shots . | . . . Overflow Damage 26 | . . 26 Projectiles . | . . . Explosions 26 | . . 26 Melee . | . . . Knockbacks 1 | . . 1 Impact . | . . . Kinetic 1 | . . 1 Secondary . | . . . Self-Inflicted Damage 115 | . . 115 Shots 4 | . . 4 Rammed 3 | . . 3 Targets Rammed 3 | . . 3 Kicked . | . . . Crushed . | . . . Highest Temperature 488 | . 18 488 Average Temperature 120 | . 7 124 Received Heat Transfer 1068 | . 138 930 Effects 8 | . . 8 Shutdowns 3 | . . 3 Energy Bleed 2 | . . 2 Interference 3 | . . 3 Siege Activations . | . . . Robots Corrupted 2 | . . 2 Combat Hostiles . | . . . Parts Fried 7 | . . 7 Impact Corruptions . | . . . Robots Melted . | . . . Combat Hostiles . | . . . Parts Melted 2 | . . 2 Heat Transferred 2260 | . . 2260 Parts Sabotaged . | . . . Parts Stolen . | . . . Parts Stripped . | . . . Power Chain Reactions 8 | . . 8 Missiles Intercepted . | . . . Alert | -11 -10 -9 ------- Run | Scr Mat Mat Peak Influence 960 | . 294 960 Average Influence 391 | . 113 469 Maximum Alert Level 3 | . 1 3 Low Security (%) 28 | 100 70 16 Level 1 18 | . 29 17 Level 2 37 | . . 47 Level 3 15 | . . 18 Level 4 . | . . . Level 5 . | . . . High Security . | . . . Max Security . | . . . Squads Dispatched 10 | . 3 7 Investigation 6 | . 3 3 Extermination . | . . . Reinforcement 2 | . . 2 Assault 2 | . . 2 Garrison . | . . . Intercept . | . . . Construction Impeded 1 | . . 1 Haulers Reinforced . | . . . Stealth | -11 -10 -9 --------- Run | Scr Mat Mat Distress Signals 6 | . 1 5 Communications Jammed . | . . . Distress Signals . | . . . Times Spotted 93 | . 17 76 Peak Tracking Total 7 | . 4 7 Tactical Retreats 6 | . 1 5 Traps | -11 -10 -9 ------- Run | Scr Mat Mat Traps Triggered 2 | . 1 1 Indirectly . | . . . Trap Hack Attempts . | . . . Triggered . | . . . Disarmed . | . . . Reprogrammed . | . . . Reused . | . . . Traps Extracted . | . . . Installed . | . . . Triggered . | . . . Machines | -11 -10 -9 ---------- Run | Scr Mat Mat Machines Disabled 3 | . . 3 Max in Single Turn 1 | . . 1 Machines Sabotaged . | . . . Garrisons Compromised . | . . . Overloaded Fab Kills . | . . . Fab Network Shutdowns . | . . . Hacking | -11 -10 -9 --------- Run | Scr Mat Mat Machines Accessed 7 | . 3 4 Terminals 6 | . 2 4 Fabricators . | . . . Repair Stations 1 | . 1 . Recycling Units . | . . . Scanalyzers . | . . . Garrison Access . | . . . Total Hacks 23 | . 10 13 Successful 15 | . 8 7 Failed 8 | . 2 6 Catastrophic 1 | . . 1 Database Lockouts . | . . . Manual . | . . . Terminals 20 | . 7 13 Fabricators . | . . . Repair Stations 3 | . 3 . Recycling Units . | . . . Scanalyzers . | . . . Garrison Access . | . . . Terminal Hacks 13 | . 6 7 Record 9 | . 6 3 Branch Access Points 1 | . . 1 Registered Prototypes 1 | . . 1 Zone Layout 2 | . . 2 Fabricator Hacks . | . . . Repair Station Hacks 2 | . 2 . Scan Component 1 | . 1 . Repair 1 | . 1 . Recycling Unit Hacks . | . . . Scanalyzer . | . . . Garrison Access Hacks . | . . . Unauthorized Hacks . | . . . Terminals . | . . . Fabricators . | . . . Repair Stations . | . . . Recycling Units . | . . . Scanalyzers . | . . . Garrison Access . | . . . Data Cores Recovered . | . . . Used . | . . . Hacking Detections 7 | . 3 4 Full Trace Events 7 | . 3 4 Feedback Events . | . . . Feedback Blocked . | . . . Robot Schematics Acquired . | . . . Robots Built . | . . . Matter . | . . . Time . | . . . Total Robot Build Rating . | . . . Part Schematics Acquired . | . . . Parts Built . | . . . Matter . | . . . Time . | . . . Total Part Build Rating . | . . . Parts Repaired 1 | . 1 . Time 13 | . 13 . Parts Recycled . | . . . Recycled Matter . | . . . Retrieved Matter . | . . . Retrieved Components . | . . . Parts Scanalyzed . | . . . Part Schematics Acquired . | . . . Parts Damaged . | . . . Bothacking | -11 -10 -9 ------------ Run | Scr Mat Mat Used RIF Installer . | . . . Robots Hacked . | . . . Non-combat . | . . . Combat . | . . . Robot Hacks Applied . | . . . Relay Couplers Released . | . . . Robots Rewired . | . . . Allies Hacked . | . . . Hacks Repelled . | . . . Allies | -11 -10 -9 -------- Run | Scr Mat Mat Total Allies . | . . . Largest Group . | . . . Highest-Rated Group . | . . . Highest-Rated Ally . | . . . Total Orders . | . . . Ally Attacks . | . . . Total Damage . | . . . Kills . | . . . Allies Corrupted . | . . . Allies Melted . | . . . Intel | -11 -10 -9 ------- Run | Scr Mat Mat Robot Analysis Total . | . . . Derelict Logs Recovered . | . . . Drone Launches . | . . . Drone Recoveries . | . . . Exploration | -11 -10 -9 ------------- Run | Scr Mat Mat Turns Passed 2204 | 80 379 1745 Spaces Moved 823 | 48 153 622 Core 6 | 4 . 2 Treads 816 | 44 153 619 Legs . | . . . Wheels . | . . . Hover . | . . . Flight 1 | . . 1 Fastest Speed 50 | 50 160 102 Average Speed 167 | 150 160 170 Slowest Speed 400 | 160 160 400 Overloaded Moves . | . . . Propulsion Burnouts . | . . . Robots Hopped . | . . . Cave-ins Triggered . | . . . Exploration Rate (%) 28 | 3 29 52 Regions Visited 2 Branch Regions . Pre-discovered Areas . | . . . Known Exits Taken . | . . . Unknown Exits Taken 2 | 1 1 . Scrap Searched . | . . . Spaces Dug . | . . . Terrain Destroyed 23 | . . 23 Melee . | . . . Projectile 2 | . . 2 AOE 21 | . . 21 Actions | -11 -10 -9 --------- Run | Scr Mat Mat Total 1256 | 53 217 986 Wait 143 | 1 16 126 Move 821 | 47 152 622 Hop . | . . . Pick Up 9 | . 1 8 Fast Attach 39 | 5 4 30 Attach 3 | . . 3 Detach 4 | . . 4 Swap 9 | . 3 6 Drop 21 | . 3 18 Fire 204 | . 38 166 Melee . | . . . Ram 1 | . . 1 Kick . | . . . Crush 2 | . . 2 Escape Stasis . | . . . Rewire . | . . . Trap . | . . . Miscellaneous . | . . . Route ------- -11/Scrapyard -10/Materials -9/Materials (discovered 2 exits: [*Mat] / Min) History --------- Turn | Location | Event 7 | -11/Scrapyard | Discovered new exit (range 16) 81 | -11/Scrapyard | Entered Materials 272 | -10/Materials | Repaired Lgt. Assault Rifle 318 | -10/Materials | Build established: Mutant 400 | -10/Materials | Discovered new exit (range 15) 460 | -10/Materials | Entered another Materials area 460 | -9/Materials | Evolved 2 slots: Power x1, Utility x1 1636 | -9/Materials | Discovered new exit (range 6) 1859 | -9/Materials | Core integrity fell below 50% 2060 | -9/Materials | First assault squad dispatched 2122 | -9/Materials | Identified exit to Mines 2152 | -9/Materials | Core integrity fell below 20% 2190 | -9/Materials | Destroyed 7 combat bots 2195 | -9/Materials | Lost 4 parts (2p2w) 2205 | -9/Materials | Destroyed by G-34 Mercenary with Small Laser Last Messages --------------- 02167_ G-34 Mercenary suffers critical hit. 02167_ G-34 Mercenary destroyed. 02169_ G-47 Trooper destroyed. 02173_ Acquired Ion Engine. 02178_ Acquired 18 matter. 02179_ Acquired 31 matter. 02183_ Acquired Sml. Laser. 02184_ Acquired 45 matter. 02186_ K-01 Serf collects debris. 02188_ Acquired Imp. Heat Sink. 02191_ K-01 Serf collects debris. 02192_ Acquired 15 matter. 02192_ U-05 Engineer lays Concrete. 02195_ K-01 Serf collects debris. 02195_ U-05 Engineer lays Concrete. 02198_ K-01 Serf collects debris. 02199_ U-05 Engineer lays Concrete. 02203_ U-05 Engineer builds a Door. 02203_ Arm. Treads destroyed. 02203_ K-01 Serf collects debris. Map ----- +----------------------------------------------------+ | ?????????????????????????????????????????????????? | | ?????????????????????????????????????????????????? | | ####?????????????????????????????????????????????? | | #?????????????????????????????????????????????? | | #??????????????????????? #??????# + T | | #??????????????????????? #??????# # "" | | #??????????????????????? ######?# # "" | | #??????????????????????? ##"T"### + "" | | #????????? # ## + # | | ########??### ## # # "" | | # #???# ###+##### ""# "" | | # #???# T"# "" | | # #???# ""# | | + """ #???# T ####### | | # """ #???# #?????? | | # """ #???# #?????? | | ########??## #################+##+###???? | | #????????#### #### # #???? | | #????????#??# #??# # """ #???? | | #????????#??# #??# # """ """ "T" #???? | | #????????#??# #??# # """ """ #???? | | #????????#?## o##?#####+*;; """ """ #???? | | #####????????#?# ##### !%u * m #???? | | #?????# ##### %! ;k#######+########? | | #?????# w ""=%o=g *g # #? | | #????????? ### @=*=%[%##### # #? | | #???????????#?# #####=[%=!##???# # #? | | %#?????????? #####+#############????# + #? | | %+????????? # #????#####+## # #? | | !#?????# # """ "" #????# # # #? | | !#?????# # """ """ #????# != # #####+##? | | ##?????# # """ S" #????# != # #???# #?? | | ######## # #???## # #???# #?? | | !! %= # #???# ! "T" # #???# #?? | | * ########## ######### """ # #???# ### | | % #####= "#=######## ###?# #? | | +%=%[ !+ *="" # #?# # | | ##[=*! =!#|=""S # ###=# | | ## = !%#!*"" + =*%+ | | ## !=#%=*| # ### # | | # =#=!! # #?#[# | | # #%= #######?# #?# | | + ! //!########???????#*#?? | | # /!!#??????????????# #?? | | # /! #??????????????# #?? | | ######+###########??????????????#%#?? | | =%! # #??????????????????????#!#?? | | ! # #?????????????????????? ?? | | + #?????????????????????? ! ?? | | # #?????????????????????? ?? | +----------------------------------------------------+ Best States ------------- Heat Dissipation 28 Energy Generation 23 Energy Capacity 445 Matter Stores 500 Matter Capacity 500 Sight Range 20 Terrain Scan Density 10 Evasion (%) 40 Recoil Reduction 2 Item Schematics ----------------- None Robot Schematics ------------------ None Fabricated ------------ Nothing Alien Tech Used ----------------- None Achievements -------------- None Challenges ------------ None Game ------ Seed AntimatterFortressWings Manual? 0 Play Time 00:23:43 Cumulative 27.1 hours Start 2020.06.03 @ 15:32:15 End 2020.06.03 @ 20:51:15 Sessions 3 Manual Loads 0 Difficulty Rogue Special Mode None Game No. 54 Rogue 54 Adventurer 0 Explorer 0 Win Type - Total 0 Types 0/0/0/0/0/0/0 Lore% 20 Gallery% 22 Achievement% 20 Wizard Run 0 Options --------- ASCII 0 Keyboard 0 Movement Numpad Keybinds 0 Fullscreen 1 Font 18/SmallcapsGlow Map View 76x50 Tactical HUD 1 Map Filters NONE Filters NONE Steam 1 RUN: 302214d0-07eb-43fa-9f44-942ef2195c04